[Event "35th Staufer-Open-A 2025"]
[Site "Schwaebisch Gmuend"]
[Date "2025.01.05"]
[Round "8.18"]
[White "Gut, Lionel"]
[Black "Herbrig, Alexander"]
[Result "1-0"]
[ECO "E43"]
[WhiteElo "2152"]
[BlackElo "2325"]
[Annotator "TA"]
[PlyCount "111"]
[EventDate "2024.11.24"]
[EventType "swiss"]
[EventCountry "GER"]
[SourceTitle "playchess.com"]
[Source "ChessBase"]
[SourceQuality "1"]
[TimeControl "40/6000+30:1200+30"]

{[%evp 16,111,13,33,65,65,52,63,51,52,75,57,77,67,91,85,124,102,150,159,165,95,97,101,102,97,135,103,149,163,152,112,138,119,112,112,139,133,162,168,176,154,175,142,215,232,315,178,186,112,224,220,331,222,220,120,121,131,120,116,334,323,463,504,535,515,507,401,875,970,936,862,2569,2179,4688,4688,4563,4062,1639,1460,5500,5691,12121,10891,5435,4723,29977,29978,29978,29979,29979,29980,29983,29984,29984,29985,29984,29985]} 1. d4 {[%emt 0:00:03]} Nf6 {[%emt 0:02:10]} 2. c4 {[%emt 0:00:50]} e6 {[%emt 0:00:48]} 3. Nc3 {[%emt 0:00:04]} Bb4 {[%emt 0:00:12]} 4. e3 {[%emt 0:00:04]} O-O {[%emt 0:00:28]} 5. Bd2 {[%emt 0:00:04]} b6 {[%emt 0:05:10]} 6. Nf3 {[%emt 0:00:48]} c5 {[%emt 0:01:03]} 7. Bd3 {[%emt 0:00:48]} Bb7 {[%emt 0:01:36]} 8. a3 {[%emt 0:00:05]} Bxc3 {[%emt 0:00:29]} 9. Bxc3 {[%emt 0:00:02]} Ne4 {[%emt 0:04:08]} 10. Bxe4 $1 {[%emt 0:00:01]} Bxe4 {[%emt 0:00:14]} 11. dxc5 {[%emt 0:00:02]} bxc5 {[%emt 0:00:59] Black is weak on the dark squares} 12. Qd6 {[%emt 0:00:01] Wards off Qe7} Nc6 {[%emt 0:22:15] Dodges Qe5} 13. Qxc5 {[%emt 0:22:07] White has more active pieces.} d6 {[%emt 0:02:45]} 14. Qh5 $40 {[%emt 0:03:04][%mdl 128] Black needs to defend precisely.} e5 {[%emt 0:00:14]} 15. O-O {[%emt 0:01:18]} g6 {[%emt 0:09:02]} 16. Qh3 {[%emt 0:06:50]} f5 {[%emt 0:02:10]} (16... Qe7) 17. Rfd1 $16 {[%emt 0:04:04]} Qe7 {[%emt 0:04:45]} 18. Qh6 {[%emt 0:09:32]} ({White should play} 18. Qh4 $18 {Hoping for Qxe7.} Qxh4 19. Nxh4) 18... Bxf3 {[%emt 0:02:41]} 19. gxf3 {[%emt 0:00:06]} f4 {[%emt 0:00:28] [#]} 20. e4 $1 {[%emt 0:00:26] Dodges Rf5} Qe6 {[%emt 0:02:18]} 21. Kg2 {[%emt 0:02:36]} Rf6 {[%emt 0:01:11]} ({Black should play} 21... Rac8 22. Qh3 Qxh3+ 23. Kxh3 Rf6) 22. Qg5 {[%emt 0:02:55]} Nd8 {[%emt 0:08:13][%cal Od8f7]} 23. Rd5 {[%emt 0:02:48]} Nf7 {[%emt 0:06:12]} 24. Qh4 {[%emt 0:01:53]} Rc8 {[%emt 0:08:35]} 25. b3 {[%emt 0:00:36]} g5 {[%emt 0:08:34][%cal Bg6g5,Bg5g4][%mdl 32]} 26. Qg4 {[%emt 0:00:28]} Qxg4+ {[%emt 0:01:11]} 27. fxg4 {[%emt 0:00:01]} h5 {[%emt 0:01:14]} 28. gxh5 {[%emt 0:07:29]} g4 {[%emt 0:00:06]} 29. Bb4 {[%emt 0:00:46]} Kh7 {[%emt 0:04:17]} (29... Kg7 $16) 30. Rad1 $18 {[%emt 0:02:50]} Rc6 {[%emt 0:00:15]} 31. c5 {[%emt 0:01:24]} (31. h3 $142) 31... dxc5 {[%emt 0:00:26]} 32. Rxc5 {[%emt 0:00:17]} (32. Bxc5 Kh6 $16) (32. Bc3 $18) 32... Rxc5 {[%emt 0:05:28]} (32... Kh6 $16 {was necessary.}) 33. Bxc5 {[%emt 0:00:11][%cal Od1d7][%mdl 4096] Endgame KRB-KRN. White is two pawns up.} a6 {[%emt 0:00:47]} (33... Kh6 $142 34. Bxa7 Ng5) 34. Rd5 {[%emt 0:03:36]} Kh6 {[%emt 0:00:51]} 35. h3 {[%emt 0:02:16]} ({Less strong is} 35. Be7 Re6 36. Rd7 Kxh5 $11) (35. b4 $18) 35... gxh3+ $16 {[%emt 0:01:07]} 36. Kxh3 {[%emt 0:00:17]} Kxh5 {[%emt 0:00:55] [#]} 37. Kg2 $1 {[%emt 0:01:08]} f3+ $2 {[%emt 0:01:11]} (37... Rg6+ $16 38. Kf1 f3) 38. Kg3 $18 {[%emt 0:01:16]} Kg6 {[%emt 0:02:40]} (38... Rf4 $142 39. Be3 Rxe4 40. Kxf3 Rg4) 39. b4 {[%emt 0:04:23]} Rc6 {[%emt 0:02:10]} 40. Kxf3 {[%emt 0:00:32]} Kf6 {[%emt 0:00:28]} 41. Be3 {[%emt 0:25:10]} Nd6 {[%emt 0:08:34]} (41... Rc3 $142 42. Ra5 Ng5+ 43. Kg4 Nxe4 44. Rxa6+ Ke7) 42. Rc5 {[%emt 0:00:00]} Rxc5 {[%emt 0:00:23]} 43. Bxc5 {[%emt 0:00:00] KB-KN. White is two pawns up.} Nb7 {[%emt 0:06:45]} 44. Ke3 {[%emt 0:00:00]} Ke6 {[%emt 0:00:44]} 45. Kd3 {[%emt 0:00:00]} Nd8 {[%emt 0:00:24]} 46. Kc4 {[%emt 0:00:00]} Nf7 {[%emt 0:00:17]} 47. Be3 {[%emt 0:00:00]} Kd6 {[%emt 0:03:52]} 48. b5 {[%emt 0:00:00]} axb5+ {[%emt 0:00:49]} 49. Kxb5 {[%emt 0:00:00] White wants to mate with a4.} Kd7 {[%emt 0:02:25]} 50. Kc5 {[%emt 0:00:00]} Ke6 {[%emt 0:00:57]} 51. a4 {[%emt 0:00:00][%cal Ba3a4,Ba4a5,Ba5a6][%mdl 32]} Nd6 {[%emt 0:00:14]} 52. a5 {[%emt 0:00:00]} Kd7 {[%emt 0:00:46]} 53. Kd5 {[%emt 0:00:00]} Kc7 {[%emt 0:00:26]} 54. Bb6+ {[%emt 0:00:00]} Kd7 {[%emt 0:00:15]} 55. a6 {[%emt 0:00:00]} Nc8 {[%emt 0:00:23]} 56. Bc5 {[%emt 0:00:00]} 1-0

[Event "35th Staufer-Open-A 2025"]
[Site "Schwaebisch Gmuend"]
[Date "2025.01.05"]
[Round "8.19"]
[White "Kocak, Ediz"]
[Black "Besou, Hussain"]
[Result "0-1"]
[ECO "E11"]
[WhiteElo "2173"]
[BlackElo "2322"]
[Annotator "TA"]
[PlyCount "56"]
[EventDate "2024.11.24"]
[EventType "swiss"]
[EventCountry "GER"]
[SourceTitle "playchess.com"]
[Source "ChessBase"]
[SourceQuality "1"]
[TimeControl "40/6000+30:1200+30"]

{[%evp 13,56,6,0,5,22,16,30,30,29,33,37,34,32,8,13,17,10,0,8,0,25,18,2,-105,-4,0,0,-237,-256,-248,-241,-246,-240,-243,-241,-350,-261,-662,-668,-620,-489,-485,-484,-622,-593]} 1. d4 {[%emt 0:15:34]} Nf6 {[%emt 0:00:08]} 2. c4 {[%emt 0:00:14]} e6 {[%emt 0:00:06]} 3. g3 {[%emt 0:00:35]} d5 {[%emt 0:00:15]} 4. Bg2 {[%emt 0:00:05]} Bb4+ {[%emt 0:00:23]} 5. Bd2 {[%emt 0:00:06][%cal Bc1d2,Bd2c3,Bc3b2][%mdl 32]} Be7 {[%emt 0:00:05]} 6. Nf3 {[%emt 0:00:10]} O-O {[%emt 0:00:09]} 7. O-O {[%emt 0:00:05]} c6 {[%emt 0:00:09]} 8. Bc3 {[%emt 0:00:47]} a5 {[%emt 0:02:37]} 9. Nbd2 {[%emt 0:06:06]} b5 {[%emt 0:02:22][%cal Bb7b5,Bb5b4][%mdl 32]} 10. b3 {[%emt 0:00:53]} Nbd7 {[%emt 0:07:38]} 11. c5 {[%emt 0:16:40]} b4 {[%emt 0:03:56]} 12. Bb2 {[%emt 0:00:06]} Ba6 {[%emt 0:00:35]} 13. Re1 {[%emt 0:04:11]} Ne4 {[%emt 0:04:50]} 14. Nxe4 {[%emt 0:03:03]} dxe4 {[%emt 0:00:05]} 15. Nd2 {[%emt 0:00:06]} f5 {[%emt 0:01:02]} 16. f3 {[%emt 0:00:06]} exf3 {[%emt 0:06:00]} 17. exf3 {[%emt 0:04:40]} e5 $1 {[%emt 0:04:40]} 18. dxe5 {[%emt 0:00:15]} (18. Rc1 $11) 18... Bxc5+ {[%emt 0:05:18]} (18... Nxc5 $17 {Threatens to win with ...Nd3.} 19. Bf1 Nd3 20. Bxd3 Qxd3 (20... Bxd3 21. Kh1 $17)) 19. Kh1 $11 {[%emt 0:00:07]} Bf2 {[%emt 0:00:12]} 20. e6 $2 {[%emt 0:07:17]} Bxe1 $19 {[%emt 0:00:35]} 21. Qxe1 {[%emt 0:00:02][%cal Oe6e7] Hoping for e7!.} Re8 {[%emt 0:00:23]} 22. f4 {[%emt 0:01:42]} Nf8 {[%emt 0:05:56]} 23. Qe5 {[%emt 0:08:58][%csl Gb2][%cal Re5g7]} Ra7 {[%emt 0:03:54]} (23... Qxd2 24. Qxg7#) (23... Nxe6 24. Bxc6 Rc8 (24... Qxd2 25. Bxa8 Rxa8 26. Qxe6+ Kh8 27. Bxg7+ Kxg7 28. Qe5+ Kg8 29. Qe6+ Kg7 30. Qe7+ Kg6 31. Qe6+ Kg7 $11) 25. Bxe8 Bb7+ (25... Qxe8 26. Re1 $17) 26. Kg1 Qb6+ (26... Qxe8 27. Re1 $16) 27. Kf1 Rxe8 28. Rc1 $19) 24. Nc4 {[%emt 0:01:21]} (24. Qc5 $142 Rae7 (24... Qxd2 25. Qxa7 Nxe6 26. Qxa6 $11) 25. Nf3) 24... Bxc4 {[%emt 0:02:02]} (24... Nxe6 25. Nd6 Ree7 26. Nxf5 $14) 25. bxc4 $2 {[%emt 0:00:31]} (25. Qc5 Qe7 (25... Nxe6 26. Qxa7 Bd5 27. Re1 $19) 26. Qxc4 Qxe6 (26... Nxe6 27. Bxc6 Rc8 28. Re1 $17) 27. Bxc6 Qxc4 28. bxc4) 25... Rxe6 {[%emt 0:00:40]} ({Inferior is} 25... Nxe6 26. Bxc6 a4 (26... Ree7 27. Qxf5 Nf8 28. Qd5+ Qxd5+ 29. Bxd5+ Kh8 30. Bd4 $11) 27. Qb5 $11 (27. Bxe8 Qxe8 28. Kg1 Qc8 $11)) 26. Qxf5 {[%emt 0:00:17]} Rae7 {[%emt 0:05:18]} 27. Be5 {[%emt 0:06:13]} Nd7 {[%emt 0:02:11][%cal Rd7e5]} 28. Rd1 {[%emt 0:00:13]} Qe8 {[%emt 0:00:35]} 0-1